bitfinex/quotes_ETHUSD_20240612
["timestamp","ask_amount","ask_price","bid_price","bid_amount"]
[1718227550331,2.3964,3560.8,3560.6,0.58533738]
[1718227552113,2.3964,3560.8,3560.7,0.58533738]
[1718227553248,2.3964,3560.8,3560.6,0.87810094]
[1718227553406,2.3964,3560.8,3560.7,0.58619255]
[1718227554308,2.3964,3560.8,3560.6,0.87810094]
[1718227555144,2.3964,3560.8,3560.7,0.87810094]
[1718227555641,2.3551,3561.5,3560.7,0.87810094]
[1718227555847,2.3551,3561.5,3560.9,0.58659631]
[1718227556005,2.3551,3561.5,3560.8,0.87810094]
[1718227556006,0.03607235,3561.4,3561.0,0.58659631]
[1718227556208,1.43344514,3561.3,3561.2,0.58659631]
[1718227556416,2.4906,3561.2,3560.7,0.58659631]
[1718227556660,3.3426,3560.8,3560.6,0.58659631]
[1718227556862,3.92404514,3560.7,3560.6,0.58659631]
[1718227557028,2.4906,3560.6,3560.4,0.58659631]
[1718227557341,2.4518,3560.4,3560.3,0.58659631]
[1718227557614,2.4518,3560.4,3560.2,0.58659631]
[1718227557615,3.92095139,3560.4,3560.2,0.58659631]
[1718227558359,2.48750625,3560.4,3560.1,0.58659631]
[1718227558867,2.48750625,3560.4,3560.2,0.58659631]
[1718227559220,2.48750625,3560.4,3560.0,0.87810094]
[1718227559221,2.48750625,3560.4,3560.1,0.58659631]
[1718227561157,2.48750625,3560.4,3560.2,0.58659631]
[1718227561534,0.03570625,3560.4,3560.2,0.58659631]
[1718227561864,3.2452,3560.7,3560.2,0.58659631]
[1718227562032,0.03547219,3560.3,3560.2,0.58659631]
[1718227562232,0.03547219,3560.3,3560.2,1.09916616]
[1718227562433,3.2452,3560.7,3560.2,1.09916616]
[1718227562640,0.03549503,3560.3,3560.2,0.51256985]
[1718227562934,0.03535772,3560.3,3560.2,0.51256985]
[1718227563138,2.3932,3560.7,3560.2,0.51256985]
[1718227563339,0.03547921,3560.6,3560.3,0.84244271]
[1718227563565,0.03547921,3560.6,3560.5,0.58629551]
[1718227563727,3.2003,3561.0,3560.5,0.58629551]
[1718227563936,0.03565702,3560.9,3560.6,0.58615637]
[1718227564137,0.03565702,3560.9,3560.7,0.05223146]
[1718227564340,2.3483,3561.8,3560.8,0.5396377]
[1718227564638,0.88684723,3561.7,3561.2,0.58615637]
[1718227564858,0.03484723,3561.7,3561.2,0.58615637]
[1718227565235,0.852,3561.7,3561.2,0.58615637]
[1718227565440,0.852,3561.7,3561.1,0.58615637]
[1718227566088,2.3483,3561.8,3561.1,0.64231493]
[1718227566237,2.3483,3561.8,3561.1,0.58615637]
[1718227567138,0.03547802,3561.7,3561.1,0.58615637]
[1718227567375,2.3483,3561.8,3561.1,0.58615637]
[1718227567796,0.03547802,3561.7,3561.1,0.58615637]
[1718227568207,2.3483,3561.8,3561.1,0.58615637]
[1718227568573,0.03547802,3561.7,3561.1,0.58615637]
[1718227568769,0.03547802,3561.7,3561.2,0.58615637]
[1718227569003,2.3483,3561.8,3561.2,0.58615637]
[1718227569379,0.03431109,3561.7,3561.2,0.58615637]
[1718227569858,2.3483,3561.8,3561.2,0.58615637]
[1718227570260,0.03431109,3561.7,3561.2,0.58615637]
[1718227570771,2.3483,3561.8,3561.1,0.64231312]
[1718227571174,0.03431109,3561.7,3561.1,0.64231312]
[1718227571658,2.3483,3561.8,3561.1,0.64231312]
[1718227572082,0.03430757,3561.7,3561.1,0.58615637]
[1718227572499,2.3483,3561.8,3561.1,0.58615637]
[1718227572858,0.03430757,3561.7,3561.1,0.58615637]
[1718227573095,0.03430757,3561.7,3561.1,0.64231262]
[1718227573302,2.3483,3561.8,3561.1,0.58615637]
[1718227573607,0.03430757,3561.7,3561.1,0.58615637]
[1718227574058,2.3483,3561.8,3561.1,0.58615637]
[1718227574488,0.03430757,3561.7,3561.1,0.58615637]
[1718227575014,2.3483,3561.8,3561.1,0.58615637]
[1718227575499,0.03430757,3561.7,3561.1,0.58615637]
[1718227575894,2.3483,3561.8,3561.1,0.58615637]
[1718227576277,0.03430757,3561.7,3561.1,0.58615637]
[1718227576685,2.3483,3561.8,3561.1,0.58615637]
[1718227577098,0.03430757,3561.7,3561.1,0.58615637]
[1718227577602,2.3483,3561.8,3561.1,0.58615637]
[1718227577978,0.03430757,3561.7,3561.1,0.58615637]
[1718227578407,2.3483,3561.8,3561.1,0.58615637]
[1718227578763,0.03430757,3561.7,3561.1,0.58615637]
[1718227579185,2.3483,3561.8,3561.1,0.58615637]
[1718227579732,0.03430757,3561.7,3561.1,0.58615637]
[1718227580029,2.3483,3561.8,3561.1,0.58615637]
[1718227580589,0.03433573,3561.7,3561.1,0.58615637]
[1718227580986,2.3483,3561.8,3561.1,0.58615637]
[1718227581386,0.03433573,3561.7,3561.1,0.58615637]
[1718227581691,2.3483,3561.8,3561.1,0.58615637]
[1718227582104,0.03433573,3561.7,3561.1,0.58615637]
[1718227582513,2.3483,3561.8,3561.1,0.58615637]
[1718227582941,0.03318896,3561.7,3561.1,0.58615637]
[1718227583144,0.03318896,3561.7,3561.0,3.06155637]
[1718227583297,2.3483,3561.8,3561.0,3.06155637]
[1718227584039,0.03318896,3561.7,3561.0,3.06155637]
[1718227584461,2.3483,3561.8,3561.0,3.06155637]
[1718227584951,0.03318896,3561.7,3561.0,3.06155637]
[1718227585095,2.3483,3561.8,3561.0,3.06155637]
[1718227585496,0.03318896,3561.7,3561.0,3.06155637]
[1718227585692,2.3483,3561.8,3561.0,3.06155637]
[1718227586099,0.03318896,3561.7,3561.0,3.06155637]
[1718227586532,2.3483,3561.8,3561.0,2.4754]
[1718227586734,0.03318896,3561.7,3561.0,2.4754]
[1718227587081,2.66833,3561.8,3561.0,2.4754]
[1718227587378,0.03318896,3561.7,3561.0,2.4754]
[1718227587575,2.66833,3561.8,3561.0,2.4754]
[1718227587721,0.03318896,3561.7,3561.0,2.4754]
[1718227587926,2.66833,3561.8,3561.0,2.4754]
[1718227588155,0.03314316,3561.7,3561.0,2.4754]
[1718227588371,2.66833,3561.8,3561.0,2.4754]
[1718227588579,0.03314316,3561.7,3561.0,2.4754]
[1718227588932,2.66833,3561.8,3561.0,2.4754]
[1718227589244,0.03314316,3561.7,3561.0,2.4754]
[1718227589773,2.66833,3561.8,3561.0,2.4754]
[1718227589929,0.03314316,3561.7,3561.0,2.4754]
[1718227590133,2.66833,3561.8,3561.0,3.06155637]
[1718227590342,0.03314316,3561.7,3561.0,3.06155637]
[1718227590540,2.66833,3561.8,3561.0,3.06155637]
[1718227590884,0.03314316,3561.7,3561.0,3.06155637]
[1718227591192,2.66833,3561.8,3561.0,3.06155637]
[1718227591676,0.03314316,3561.7,3561.0,3.06155637]
[1718227592037,2.66833,3561.8,3561.0,3.06155637]
[1718227592541,0.03312556,3561.7,3561.0,3.06155637]
[1718227592773,2.66833,3561.8,3561.0,3.06155637]
[1718227592936,0.03313965,3561.7,3561.0,3.06155637]
[1718227593134,2.66833,3561.8,3561.0,3.06155637]
[1718227593336,0.03313965,3561.7,3561.0,3.06155637]
[1718227593537,2.66833,3561.8,3561.0,3.06155637]
[1718227593770,0.03313965,3561.7,3561.0,3.06155637]
[1718227594073,2.66833,3561.8,3561.0,3.06155637]
[1718227594451,0.03313965,3561.7,3561.0,3.06155637]
[1718227594852,2.66833,3561.8,3561.0,3.06155637]
[1718227595273,0.03313965,3561.7,3561.0,3.06155637]
[1718227595570,2.66833,3561.8,3561.0,3.06155637]
[1718227595935,0.03313965,3561.7,3561.0,3.06155637]
[1718227596175,2.66833,3561.8,3561.0,3.06155637]
[1718227596342,0.03313965,3561.7,3561.0,3.06155637]
[1718227596537,2.66833,3561.8,3561.0,3.06155637]
[1718227596850,0.03313965,3561.7,3561.0,3.06155637]
[1718227597377,2.66833,3561.8,3561.0,3.06155637]
[1718227597589,0.03313965,3561.7,3561.0,3.06155637]
[1718227597970,2.66833,3561.8,3561.0,3.06155637]
[1718227598162,0.03313965,3561.7,3561.0,3.06155637]
[1718227598485,2.3483,3561.8,3561.0,3.06155637]
[1718227598783,0.03313965,3561.7,3561.0,3.06155637]
[1718227598989,2.3483,3561.8,3561.0,3.06155637]
[1718227599350,0.03313965,3561.7,3561.0,3.06155637]
[1718227599550,2.3483,3561.8,3561.0,3.06155637]
[1718227599872,0.03313965,3561.7,3561.0,3.06155637]
[1718227600380,2.3483,3561.8,3561.1,0.58615637]
[1718227600585,0.03313965,3561.7,3561.1,0.58615637]
[1718227600962,2.3483,3561.8,3561.1,0.58615637]
[1718227601281,0.03313965,3561.7,3561.0,3.06155637]
[1718227601583,2.3483,3561.8,3561.0,3.06155637]
[1718227601878,0.03313965,3561.7,3561.1,0.58615637]
[1718227602086,2.3483,3561.8,3561.0,3.06155637]
[1718227602378,0.03313262,3561.7,3561.0,3.06155637]
[1718227602749,2.3483,3561.8,3561.0,3.06155637]
[1718227603290,0.03313262,3561.7,3561.1,0.58615637]
[1718227603651,2.3483,3561.8,3561.1,0.58615637]
[1718227604051,0.03313262,3561.7,3561.1,0.58615637]
[1718227604484,2.3483,3561.8,3561.1,0.58615637]
[1718227604978,0.03313262,3561.7,3561.2,0.58615637]
[1718227605965,0.48540895,3562.8,3561.2,0.58615637]
[1718227605966,0.852,3561.9,3561.2,0.58615637]
[1718227606167,0.03316956,3561.8,3561.2,0.58615637]
[1718227607593,0.03316956,3561.8,3561.2,2.86315637]
[1718227607887,3.2502,3562.0,3561.3,0.58615637]
[1718227608088,5.00866514,3562.0,3561.3,0.58615637]
[1718227608257,0.03321003,3561.9,3561.4,0.58615637]
[1718227608690,5.00866514,3562.0,3561.4,0.58615637]
[1718227609460,5.00866514,3562.0,3561.6,0.58615637]
[1718227616594,3.83164514,3562.0,3561.6,0.58615637]
[1718227616989,0.88521558,3561.9,3561.6,0.58615637]
[1718227618202,2.31866072,3561.9,3561.6,0.58615637]
[1718227618383,2.2681,3561.8,3561.6,0.58615637]
[1718227618586,1.46654419,3561.7,3561.6,0.58615637]
[1718227618802,1.92520861,3561.7,3561.6,0.58615637]
[1718227619106,1.92520861,3561.7,3561.5,0.58615637]
[1718227621792,1.92520861,3561.7,3561.4,0.58615637]
[1718227622193,0.03309905,3561.7,3561.4,0.58615637]
[1718227622403,2.4807,3561.9,3561.6,0.58615637]
[1718227622910,2.4807,3561.9,3561.7,0.58615637]
[1718227623110,2.4807,3561.9,3561.6,0.58615637]
[1718227624030,2.4807,3561.9,3561.7,0.58615637]
[1718227624807,2.4807,3561.9,3561.6,0.58615637]
[1718227627400,2.4807,3561.9,3561.7,0.58615637]
[1718227627613,1.43344514,3561.8,3561.7,0.58615637]
[1718227627797,1.43344514,3561.8,3561.5,0.58615637]
[1718227627798,1.46656889,3561.8,3561.5,0.58615637]
[1718227628202,1.46656889,3561.8,3561.6,0.58615637]
[1718227628407,2.2619,3561.7,3561.6,0.58615637]
[1718227628603,4.21980232,3561.7,3561.6,0.58615637]
[1718227628896,4.21980232,3561.7,3561.4,0.58615637]
[1718227629118,1.43344514,3561.6,3561.4,0.58615637]
[1718227629430,1.46648796,3561.6,3561.4,0.58615637]
[1718227630920,0.03304282,3561.6,3561.4,0.58615637]
[1718227631098,0.03304282,3561.6,3561.4,0.84966223]
[1718227631306,0.03304282,3561.6,3561.5,0.58615637]
[1718227631507,0.852,3562.0,3561.5,0.58615637]
[1718227631705,0.03256978,3561.6,3561.5,0.58615637]
[1718227631894,0.852,3562.0,3561.5,0.58615637]
[1718227632295,0.03269118,3561.9,3561.5,0.58615637]
[1718227632703,0.852,3562.0,3561.5,0.58615637]
[1718227633122,0.03266308,3561.9,3561.7,0.58615637]
[1718227633493,0.852,3562.0,3561.7,0.58615637]
[1718227634040,0.03263953,3561.9,3561.7,0.58615637]
[1718227634331,2.4392,3562.1,3561.7,0.58615637]
[1718227634502,0.852,3562.0,3561.7,0.58615637]
[1718227635029,0.03278278,3561.9,3561.7,0.58615637]
[1718227635453,0.03278278,3561.9,3561.8,0.58615637]
[1718227636419,0.03278278,3561.9,3561.7,0.58615637]
[1718227636846,3.87264514,3562.1,3561.8,0.58615637]
[1718227636847,4.72464514,3562.1,3561.8,0.58615637]
[1718227637158,3.87264514,3562.1,3561.8,0.58615637]
[1718227637364,0.03285847,3562.0,3561.8,0.58615637]
[1718227638221,0.03285847,3562.0,3561.8,1.0447735]
[1718227638415,2.4433,3562.3,3561.9,0.58615637]
[1718227638616,0.03298165,3562.2,3561.9,0.58615637]
[1718227638837,3.87674514,3562.3,3561.9,0.58615637]
[1718227639075,0.0329412,3562.1,3561.9,0.58615637]
[1718227639258,3.87674514,3562.3,3561.9,0.58615637]
[1718227639423,0.03290074,3562.0,3561.9,0.58615637]
[1718227639622,3.87674514,3562.3,3561.9,0.58615637]
[1718227639951,0.03298165,3562.2,3561.9,0.58615637]
[1718227640154,0.03298165,3562.2,3561.8,0.58615637]
[1718227640313,3.87674514,3562.3,3561.8,0.58615637]
[1718227640518,0.0329412,3562.1,3561.8,0.58615637]
[1718227640823,0.03290074,3562.0,3561.9,0.58615637]
[1718227641015,3.87674514,3562.3,3561.9,0.58615637]
[1718227641255,0.03298165,3562.2,3561.9,0.58615637]
[1718227641455,3.87674514,3562.3,3561.9,0.58615637]
[1718227641667,0.0329412,3562.1,3561.9,0.58615637]
[1718227641961,1.43344514,3562.3,3561.9,0.58615637]
[1718227642118,0.03290074,3562.0,3561.8,2.89865637]
[1718227642459,1.43344514,3562.3,3561.9,0.58615637]
[1718227643455,0.852,3562.5,3561.9,0.58615637]
[1718227643648,1.43344514,3562.4,3561.9,0.58615637]
[1718227644220,0.852,3562.3,3561.9,0.58615637]
[1718227646065,0.852,3562.3,3561.8,2.3125]
[1718227648234,0.852,3562.3,3561.8,2.89865637]
[1718227649868,0.03296805,3562.2,3561.8,2.89865637]
[1718227650080,0.852,3562.3,3561.8,2.89865637]
[1718227650253,0.0329276,3562.1,3561.8,2.89865637]
[1718227650448,0.852,3562.3,3561.8,2.3125]
[1718227650646,0.03288714,3562.0,3561.8,2.3125]
[1718227650852,0.852,3562.3,3561.8,2.3125]
[1718227651163,0.03284667,3561.9,3561.8,2.89865637]
[1718227651340,0.852,3562.3,3561.8,2.89865637]
[1718227651971,0.03296805,3562.2,3561.8,2.89865637]
[1718227652346,0.852,3562.3,3561.8,2.89865637]
[1718227652575,0.0329276,3562.1,3561.8,2.89865637]
[1718227652870,0.03288714,3562.0,3561.8,2.89865637]
[1718227653298,0.03284667,3561.9,3561.8,2.89865637]
[1718227653597,0.852,3562.3,3561.8,2.89865637]
[1718227653745,0.03284667,3561.9,3561.8,2.89865637]
[1718227654172,0.852,3562.3,3561.8,2.89865637]
[1718227654401,0.03284667,3561.9,3561.8,2.3125]
[1718227654882,0.852,3562.3,3561.8,2.3125]
[1718227655043,0.03284667,3561.9,3561.8,2.3125]
[1718227655542,0.852,3562.3,3561.8,2.3125]
[1718227655743,0.03284667,3561.9,3561.8,2.89865637]
[1718227655975,0.852,3562.3,3561.8,2.89865637]
[1718227656174,0.03284667,3561.9,3561.8,2.89865637]
[1718227656352,0.852,3562.3,3561.8,2.89865637]
[1718227656556,0.03284667,3561.9,3561.8,2.89865637]
[1718227656756,0.852,3562.3,3561.8,2.89865637]
[1718227656964,0.03284667,3561.9,3561.8,2.89865637]
[1718227657149,0.852,3562.3,3561.8,2.89865637]
[1718227657350,0.03284667,3561.9,3561.8,2.3125]
[1718227657875,0.852,3562.3,3561.8,2.3125]
[1718227658079,0.03284667,3561.9,3561.8,2.3125]
[1718227658658,0.852,3562.3,3561.8,2.3125]
[1718227658871,0.03284667,3561.9,3561.8,2.3125]
[1718227659180,0.852,3562.3,3561.8,2.3125]
[1718227659358,0.03284667,3561.9,3561.8,2.3125]
[1718227659675,0.852,3562.3,3561.8,2.3125]
[1718227659880,0.03284667,3561.9,3561.8,2.3125]
[1718227660047,0.852,3562.3,3561.8,2.3125]
[1718227660448,0.03296805,3562.2,3561.8,2.3125]
[1718227660651,0.852,3562.3,3561.8,2.3125]
[1718227661078,0.03296805,3562.2,3561.8,2.3125]
[1718227661448,0.852,3562.3,3561.8,2.3125]
[1718227661644,0.03296805,3562.2,3561.8,2.3125]
[1718227661848,0.852,3562.3,3561.8,2.3125]
[1718227662048,0.03296805,3562.2,3561.8,2.3125]
[1718227662270,0.852,3562.3,3561.8,2.3125]
[1718227662483,0.0329276,3562.1,3561.8,2.3125]
[1718227662665,0.852,3562.3,3561.8,2.3125]
[1718227662862,0.03288714,3562.0,3561.8,2.3125]
[1718227663057,0.852,3562.3,3561.8,2.3125]
[1718227663270,0.03284667,3561.9,3561.8,2.3125]
[1718227663581,0.852,3562.3,3561.8,2.3125]
[1718227663758,0.03284667,3561.9,3561.8,2.3125]
[1718227663960,0.852,3562.3,3561.8,2.3125]
[1718227664155,0.03284667,3561.9,3561.8,2.3125]
[1718227664363,0.852,3562.3,3561.8,2.3125]
[1718227664587,0.03284667,3561.9,3561.8,2.3125]
[1718227664779,0.852,3562.3,3561.8,2.3125]
[1718227665184,0.03296805,3562.2,3561.8,2.3125]
[1718227665564,0.852,3562.3,3561.8,2.3125]
[1718227665881,0.03298247,3562.2,3561.8,2.3125]
[1718227666085,0.852,3562.3,3561.8,2.3125]
[1718227666274,0.0329276,3562.1,3561.8,2.3125]
[1718227666469,0.852,3562.3,3561.8,2.3125]
[1718227666676,0.03288714,3562.0,3561.8,2.3125]
[1718227666986,2.2954,3562.6,3561.8,2.69017573]
[1718227667160,2.28544514,3562.5,3561.8,3.2763321]
[1718227667363,2.31858736,3562.5,3561.8,3.2763321]
[1718227668204,2.31858736,3562.5,3561.9,0.58615637]
[1718227669294,0.03314222,3562.5,3561.9,0.58615637]
[1718227669500,0.88514222,3562.5,3561.9,0.58615637]
[1718227670590,0.852,3562.4,3561.9,1.1186798]
[1718227670955,3.0,3563.1,3562.0,0.64230058]
[1718227670956,0.03225652,3562.3,3562.0,0.64230058]
[1718227671163,0.852,3562.6,3562.1,0.58615637]
[1718227671382,0.031217,3562.2,3562.0,0.93424515]
[1718227671569,0.852,3562.6,3562.1,0.53277456]
[1718227671754,0.852,3562.6,3562.2,0.58639845]
[1718227672066,0.03133836,3562.5,3562.2,0.58639845]
[1718227674218,0.03133836,3562.5,3562.1,1.11917301]
[1718227674559,0.03133836,3562.5,3562.2,0.58639845]
[1718227674891,0.03133836,3562.5,3562.2,1.03445353]
[1718227675056,0.03133836,3562.5,3562.2,0.44805508]
[1718227675257,0.852,3562.7,3562.2,1.03445353]
[1718227676205,0.852,3562.7,3562.2,0.44805508]
[1718227676376,0.852,3562.7,3562.2,1.03445353]
[1718227677488,2.4241,3562.9,3562.2,1.03445353]
[1718227677698,2.3555,3563.3,3562.3,1.15267357]
[1718227677902,0.03138228,3562.6,3562.3,1.73907202]
[1718227678103,0.03162171,3562.8,3562.5,0.58639845]
[1718227678315,2.3555,3563.3,3562.6,0.64240367]
[1718227678458,2.3555,3563.3,3562.6,1.50806144]
[1718227678658,2.3555,3563.3,3562.8,0.58618631]
[1718227679156,2.3555,3563.3,3562.6,1.50806144]
[1718227679157,2.3555,3563.3,3562.7,0.58618631]
[1718227679904,0.03182214,3563.2,3562.7,0.58618631]
[1718227680066,2.3555,3563.3,3562.8,0.58618631]
[1718227680264,0.03182214,3563.2,3562.8,0.58618631]
[1718227680470,2.3555,3563.3,3562.8,1.03526794]
[1718227680692,0.03182214,3563.2,3562.8,1.03526794]
[1718227680899,2.3555,3563.3,3562.8,1.03526794]
[1718227681085,0.03178171,3563.1,3562.8,0.58618631]
[1718227681270,2.3555,3563.3,3562.8,0.58618631]
[1718227681488,0.03206158,3563.2,3562.8,0.58618631]
[1718227681801,2.3555,3563.3,3562.7,2.94908631]
[1718227682004,0.852,3563.4,3562.8,0.04588612]
[1718227682204,0.852,3563.4,3562.7,3.78649729]
[1718227682205,0.03206158,3563.2,3562.7,3.78649729]
[1718227682404,0.03210201,3563.3,3562.7,4.63849729]
[1718227682715,0.03209332,3563.2,3562.8,0.05612973]
[1718227683017,2.3098,3563.5,3562.8,0.05612973]
[1718227683171,2.3098,3563.5,3562.8,0.3546012]
[1718227683372,0.03217418,3563.4,3562.8,0.3546012]
[1718227683621,0.03217418,3563.4,3562.8,0.94078751]
[1718227683803,2.3098,3563.5,3562.9,0.58618631]
[1718227684126,2.4907,3564.4,3562.9,1.43818631]
[1718227684270,2.4907,3563.8,3562.9,0.852]
[1718227684470,1.46574059,3563.7,3562.9,0.852]
[1718227686416,1.46574059,3563.7,3562.9,0.87286166]
[1718227686576,1.46574059,3563.7,3563.0,2.2835]
[1718227687785,0.03229545,3563.7,3563.0,2.2835]
[1718227687988,0.03229545,3563.7,3563.1,1.25401578]
[1718227688219,2.4515,3564.1,3563.3,0.852]
[1718227688380,2.4515,3564.1,3563.3,0.90812135]
[1718227688381,0.03117532,3563.6,3563.3,0.90812135]
[1718227688579,1.43344514,3564.0,3563.3,0.90812135]
[1718227688780,0.03129475,3563.5,3563.3,0.90812135]
[1718227688975,2.4989,3564.5,3563.3,3.23182135]
[1718227689276,2.31688233,3564.4,3563.4,0.36338371]
[1718227689482,2.31688233,3564.4,3563.5,0.05611816]
[1718227689699,1.46488233,3564.4,3563.4,0.41950187]
[1718227690213,2.31688233,3564.4,3563.5,2.4131]
[1718227690409,2.31688233,3564.4,3563.6,0.05611501]
[1718227690595,0.88343719,3564.4,3563.7,0.36845987]
[1718227690795,0.88343719,3564.4,3564.0,2.4749]
[1718227690796,0.03143719,3564.4,3564.0,2.4749]
[1718227690995,0.852,3564.9,3564.0,2.4749]
[1718227691314,1.43344514,3564.9,3564.1,0.0561106]
[1718227691517,0.02950938,3564.8,3564.6,2.4749]
[1718227691690,0.852,3565.5,3564.6,2.4749]
[1718227691890,0.02953034,3564.7,3564.6,2.4749]
[1718227692110,1.43344514,3565.4,3564.6,2.4749]
[1718227692417,0.852,3565.6,3564.6,2.4749]
[1718227692723,1.46208374,3565.5,3564.7,0.33269]
[1718227693623,1.46208374,3565.5,3564.7,1.18469]
[1718227696226,0.0286386,3565.5,3564.7,1.18469]
[1718227696594,2.28544514,3565.4,3564.1,3.0]
[1718227696799,2.4168,3565.3,3564.4,0.852]
[1718227697105,3.87866433,3565.3,3564.4,0.852]
[1718227697314,3.87866433,3565.3,3564.4,4.18251]
[1718227697720,3.85024514,3565.3,3564.4,4.18251]
[1718227697896,0.02846306,3565.2,3564.4,4.18251]
[1718227698098,1.43344514,3565.1,3564.0,2.4213]
[1718227698334,0.852,3564.7,3564.0,2.4213]
[1718227698516,1.46189919,3565.1,3564.0,3.2733]
[1718227698725,0.02825207,3564.6,3564.0,3.2733]
[1718227698922,0.852,3565.0,3564.1,0.32733]
[1718227699147,1.43344514,3565.0,3564.0,3.2733]
[1718227699434,0.02837327,3564.9,3564.0,3.2733]
[1718227701943,0.02837327,3564.9,3564.1,2.4255]
[1718227702152,0.852,3565.3,3564.2,0.852]
[1718227702436,2.28544514,3565.3,3564.3,2.3292]
[1718227702612,0.02920174,3565.2,3564.3,2.3292]
[1718227702799,0.02920174,3565.2,3564.3,2.64732]
[1718227702999,0.02920174,3565.2,3564.4,0.05610284]
[1718227703635,0.02920174,3565.2,3564.3,2.64732]
[1718227703827,0.02920174,3565.2,3564.4,0.05610264]
[1718227704742,0.02920174,3565.2,3564.4,0.90810264]
[1718227704921,0.02920174,3565.2,3564.4,1.2636449]
[1718227705423,0.02920174,3565.2,3564.4,1.20754226]
[1718227705736,0.02916135,3565.1,3564.4,1.20754226]
[1718227705936,0.852,3565.4,3564.4,1.20754226]
[1718227706106,0.852,3565.5,3564.4,1.20754226]
[1718227706310,0.02924213,3565.3,3564.8,0.852]
[1718227706509,0.852,3565.8,3564.9,0.05609624]
[1718227706712,0.02917711,3565.2,3564.9,0.05609624]
[1718227707038,1.43344514,3565.7,3564.9,0.05609624]
[1718227707234,0.02913672,3565.1,3565.0,2.2671]
[1718227707434,1.43344514,3565.7,3565.0,3.1191]
[1718227707918,0.02933864,3565.6,3565.0,3.1191]
[1718227709558,0.02933864,3565.6,3565.5,0.852]
[1718227709746,0.02933864,3565.6,3565.5,1.2008084]
[1718227709947,0.852,3566.8,3565.5,1.16379]
[1718227710121,1.43344514,3566.7,3565.7,0.852]
[1718227710317,1.46032819,3566.7,3565.7,0.852]
[1718227710554,0.852,3566.6,3565.7,0.852]
[1718227710861,2.28544514,3566.6,3565.7,0.852]
[1718227711066,0.02680234,3566.5,3565.7,0.852]
[1718227711670,0.02680234,3566.5,3565.8,0.05608256]
[1718227715686,0.02680234,3566.5,3565.6,0.05608255]
[1718227715902,0.02680234,3566.5,3565.6,0.67348081]
[1718227716618,0.02680234,3566.5,3565.9,0.852]
[1718227716891,0.02680234,3566.5,3565.7,0.852]
[1718227717188,0.852,3566.7,3565.8,0.05607768]
[1718227717387,0.02676198,3566.4,3565.8,0.05607768]
[1718227717687,3.0,3567.4,3566.0,2.387]
[1718227717865,0.02672162,3566.3,3566.1,0.852]
[1718227718063,0.852,3567.1,3566.1,0.852]
[1718227718262,0.02609935,3567.0,3566.1,0.852]
[1718227718488,0.1233254,3567.2,3566.1,0.852]
[1718227718489,0.1233254,3567.2,3566.3,2.387]
[1718227718786,0.1233254,3567.2,3567.1,0.852]
[1718227719487,0.1233254,3567.2,3567.0,0.852]
[1718227720365,0.1233254,3567.2,3567.1,0.03029443]
[1718227720891,0.1233254,3567.2,3566.5,4.685]
[1718227721061,0.1233254,3567.2,3566.6,1.49547375]
[1718227721262,0.1233254,3567.2,3566.7,0.05605842]
[1718227721598,0.1233254,3567.2,3566.8,0.05605832]
[1718227723062,0.1233254,3567.2,3566.6,1.49547375]
[1718227723265,0.1233254,3567.2,3566.7,2.10537942]
[1718227723465,0.1233254,3567.2,3566.8,0.66008532]
[1718227724311,0.1233254,3567.2,3566.9,2.4453]
[1718227724662,0.1233254,3567.2,3567.0,0.41802155]
[1718227724864,7.46,3568.4,3567.1,4.52712684]
[1718227725227,2.3451,3569.3,3567.1,4.52712684]
[1718227725228,0.00293,3569.0,3567.8,1.685]
[1718227725497,0.00293,3569.0,3567.9,2.52473595]
[1718227725889,0.00293,3569.0,3568.0,3.0]
[1718227726059,0.00293,3569.0,3568.1,0.44284325]
[1718227726266,0.00293,3569.0,3568.2,0.55246528]
[1718227726508,0.00293,3569.0,3568.3,0.0560352]
[1718227727290,0.00293,3569.0,3568.2,0.55246528]
[1718227727579,0.00293,3569.0,3568.3,0.39366842]
[1718227727882,0.00293,3569.0,3568.1,0.38680786]
[1718227728086,0.00293,3569.0,3568.2,0.05603369]
[1718227728288,0.00293,3569.0,3568.3,0.0560337]
[1718227728492,0.00293,3569.0,3568.3,0.26881786]
[1718227728704,0.00293,3569.0,3568.3,0.21278416]
[1718227729666,0.00293,3569.0,3568.4,0.05603064]
[1718227729862,0.00293,3569.0,3568.3,0.21278416]
[1718227730503,0.00293,3569.0,3567.9,1.685]
[1718227730670,0.00293,3569.0,3567.9,2.08102425]
[1718227731073,0.00293,3569.0,3568.1,1.685]
[1718227731274,0.00293,3569.0,3568.5,1.685]
[1718227731484,0.00293,3569.0,3568.8,4.1695]
[1718227731693,0.00293,3569.0,3568.9,4.02461815]
[1718227731911,2.498,3570.5,3568.9,4.02461815]
[1718227732275,3.93144514,3570.5,3568.9,4.02461815]
[1718227733104,1.43344514,3570.5,3568.9,4.02461815]
[1718227733318,0.1233254,3570.8,3568.9,5.72782618]
[1718227733521,1.43344514,3570.7,3569.0,1.17011205]
[1718227733819,1.43344514,3570.7,3569.1,0.05601897]
[1718227734120,0.1233254,3570.8,3569.2,7.1597908]
[1718227734275,0.1233254,3570.8,3569.3,3.05601503]
[1718227734606,0.1233254,3570.8,3569.4,1.05739962]
[1718227734819,0.1233254,3570.8,3569.5,0.05601504]
[1718227735150,0.1233254,3570.8,3569.6,2.4845]
[1718227735277,0.1233254,3570.8,3569.7,0.05601143]
[1718227735589,0.1233254,3570.8,3569.8,0.05601143]
[1718227735791,0.1233254,3570.8,3569.9,0.58986368]
[1718227736002,0.1233254,3570.8,3570.0,0.05601143]
[1718227736411,0.1233254,3570.8,3570.1,2.40853934]
[1718227736587,0.1233254,3570.8,3570.2,0.05600039]
[1718227736909,0.1233254,3570.8,3570.3,0.05600063]
[1718227737087,0.1233254,3570.8,3570.4,0.58241312]
[1718227737412,0.2808,3572.9,3570.5,2.90277705]
[1718227737413,0.498,3572.6,3570.5,2.90277705]
[1718227737588,2.038,3572.4,3570.6,3.0]
[1718227737789,1.43344514,3572.3,3570.6,3.0]
[1718227738325,1.43344514,3572.3,3570.5,5.4845]
[1718227738610,2.038,3572.1,3570.6,0.60669131]
[1718227738811,1.43344514,3572.0,3570.6,3.60669131]
[1718227739283,1.43344514,3572.0,3570.6,0.60669131]
[1718227739483,1.43344514,3572.0,3570.1,3.0]
[1718227739813,1.43344514,3572.0,3570.1,0.35521791]
[1718227739989,4.43344514,3572.0,3570.2,2.4763]
[1718227740310,1.43344514,3572.0,3570.2,2.4763]